bitfinex/quotes_ETHUSD_20250411
["timestamp","ask_amount","ask_price","bid_price","bid_amount"]
[1744382024941,6.44096,1552.6,1552.4,9.456]
[1744382025151,6.44122,1552.5,1552.4,9.456]
[1744382025807,6.44096,1552.6,1552.4,9.456]
[1744382026011,6.4404,1552.7,1552.4,9.456]
[1744382026230,6.44082,1552.6,1552.4,9.456]
[1744382026431,6.44122,1552.5,1552.4,9.456]
[1744382026941,12.88194,1552.6,1552.4,9.456]
[1744382027246,6.44185,1552.4,1552.1,12.11468981]
[1744382027419,6.44133,1552.5,1552.2,9.50684664]
[1744382027614,12.88272,1552.5,1552.2,9.50684664]
[1744382028014,12.88272,1552.5,1552.2,3.06441664]
[1744382028216,6.44164,1552.4,1552.2,3.06441664]
[1744382028826,12.88354,1552.4,1552.2,3.0]
[1744382029030,12.88363,1552.4,1552.2,3.0]
[1744382029237,0.05,1552.3,1551.9,1.2115]
[1744382029440,0.05,1552.3,1551.8,59.58983083]
[1744382029441,6.44288,1552.1,1551.8,59.58983083]
[1744382029670,6.49293,1552.1,1551.8,53.14590083]
[1744382029867,0.05,1552.2,1551.8,2.90590083]
[1744382030023,6.44263,1552.2,1551.9,6.44359]
[1744382030363,6.44263,1552.2,1551.9,7.38495222]
[1744382030567,6.44263,1552.2,1551.9,13.82851222]
[1744382030736,6.44209,1552.3,1552.0,6.44318]
[1744382030923,6.4417,1552.4,1552.1,6.4427]
[1744382031319,6.44225,1552.3,1551.9,10.38499222]
[1744382031546,6.44303,1552.1,1551.9,3.0]
[1744382031758,6.44251,1552.2,1551.9,9.44359]
[1744382031992,12.8852,1552.2,1551.9,9.44366]
[1744382032156,6.44366,1552.0,1551.7,11.1776988]
[1744382032347,6.443,1552.1,1551.7,19.38428168]
[1744382032548,6.44175,1552.4,1551.9,9.44334]
[1744382032549,6.44214,1552.3,1551.9,9.44334]
[1744382032849,1.217,1552.4,1551.9,9.44334]
[1744382032850,6.49279,1552.2,1551.9,3.0]
[1744382033051,6.49279,1552.2,1551.9,9.44364]
[1744382033052,6.44279,1552.2,1551.9,9.44364]
[1744382033281,6.44295,1552.1,1551.9,3.0]
[1744382033665,6.4427,1552.2,1551.9,11.47565698]
[1744382033849,12.88435,1552.3,1551.9,17.98373571]
[1744382034062,12.88435,1552.3,1551.9,17.91930698]
[1744382034394,12.88457,1552.3,1552.0,6.99321]
[1744382034559,7.65868,1552.4,1552.1,6.44287]
[1744382034890,7.65868,1552.4,1552.0,6.99315]
[1744382035053,7.65868,1552.4,1552.1,7.142195]
[1744382035688,7.65868,1552.4,1552.1,0.699315]
[1744382036161,7.65868,1552.4,1552.1,7.142165]
[1744382036358,6.44216,1552.3,1552.1,3.699315]
[1744382036585,6.44246,1552.2,1551.9,9.44369]
[1744382036784,6.44292,1552.1,1551.9,3.0]
[1744382037012,6.44292,1552.1,1551.8,4.43208981]
[1744382037212,6.44292,1552.1,1551.9,0.06442931]
[1744382037502,6.44329,1552.1,1551.8,4.43208981]
[1744382037806,6.44254,1552.2,1551.8,10.94041017]
[1744382037975,6.443,1552.1,1551.8,4.43208981]
[1744382038180,6.44331,1552.0,1551.8,4.43208981]
[1744382038590,6.44331,1552.0,1551.7,14.1776988]
[1744382038897,0.05,1552.2,1551.8,7.49652274]
[1744382039104,6.4427,1552.2,1551.9,6.44343]
[1744382039393,12.88542,1552.2,1551.8,20.23653369]
[1744382039564,12.88544,1552.2,1551.8,20.23653369]
[1744382039768,12.88532,1552.2,1551.9,6.44359]
[1744382040102,0.05,1552.1,1551.8,7.34839369]
[1744382040274,6.44288,1552.1,1551.8,7.34839369]
[1744382040599,6.44341,1552.0,1551.8,4.34839369]
[1744382040798,6.44295,1552.1,1551.8,10.79237369]
[1744382041002,0.05,1552.3,1552.1,6.44272]
[1744382041170,7.65868,1552.4,1552.1,6.44272]
[1744382041373,6.44168,1552.4,1552.1,12.88548]
[1744382041574,6.44168,1552.4,1552.2,4.34839369]
[1744382042082,12.93273,1552.5,1552.2,4.34839369]
[1744382042270,6.44171,1552.4,1552.2,4.34839369]
[1744382042468,6.44171,1552.4,1552.2,5.42750506]
[1744382042674,1.3619,1552.6,1552.3,6.44194]
[1744382042675,7.75285,1552.6,1552.3,6.44194]
[1744382042908,1.3119,1552.6,1552.2,11.86981506]
[1744382043080,6.44174,1552.4,1552.1,6.44277]
[1744382043282,6.44131,1552.5,1552.2,6.44242]
[1744382043501,6.4417,1552.4,1552.1,6.44276]
[1744382043711,6.4417,1552.4,1552.1,12.88551]
[1744382044105,12.93294,1552.5,1552.1,12.88551]
[1744382044306,12.93294,1552.5,1552.2,1.288551]
[1744382044690,6.44131,1552.5,1552.2,12.07940469]
[1744382044893,6.44052,1552.7,1552.4,10.78982369]
[1744382045107,6.44052,1552.7,1552.4,10.85423324]
[1744382045283,6.44052,1552.7,1552.4,19.32536356]
[1744382045484,12.87933,1552.9,1552.5,6.44108]
[1744382045804,12.87933,1552.9,1552.5,12.88227]
[1744382046406,6.44003,1552.8,1552.5,6.44108]
[1744382046709,6.44003,1552.8,1552.5,8.3671444]
[1744382047006,6.44045,1552.7,1552.5,1.9260644]
[1744382047209,6.44003,1552.8,1552.5,8.3671544]
[1744382047405,6.44039,1552.7,1552.5,1.9260644]
[1744382047607,6.44003,1552.8,1552.5,8.3671444]
[1744382047912,7.72492,1553.0,1552.7,6.44006]
[1744382048110,6.43932,1553.0,1552.7,6.44006]
[1744382048279,6.48844,1553.2,1552.9,6.43942]
[1744382048479,6.43803,1553.3,1552.9,12.87885]
[1744382048683,6.43803,1553.3,1553.0,6.4391]
[1744382048884,12.87614,1553.3,1553.0,6.4391]
[1744382049188,6.43972,1552.9,1552.7,12.44]
[1744382049517,6.43884,1553.1,1552.8,4.34839369]
[1744382049811,7.64443,1553.3,1553.0,6.43899]
[1744382049980,7.64443,1553.3,1552.9,6.98951]
[1744382049981,6.43846,1553.2,1552.9,6.98951]
[1744382050177,6.43846,1553.2,1552.9,3.06438333]
[1744382050378,6.438,1553.3,1553.0,6.4389]
[1744382050584,6.4379,1553.3,1552.9,17.3834157]
[1744382050783,6.4379,1553.3,1553.0,10.85185436]
[1744382050983,6.48753,1553.4,1553.0,10.85178436]
[1744382051181,6.43805,1553.3,1553.0,4.34839369]
[1744382051415,6.48759,1553.4,1553.1,6.43869]
[1744382051608,0.05,1553.4,1553.2,6.50255904]
[1744382051810,0.05,1553.4,1553.2,10.85093273]
[1744382052016,0.05,1553.4,1553.3,6.4379]
[1744382052583,0.05,1553.4,1553.3,6.9879]
[1744382052784,0.05,1553.4,1553.3,12.75724913]
[1744382053113,6.48749,1553.4,1553.3,3.0]
[1744382053411,6.48749,1553.4,1553.2,9.438]
[1744382053582,6.43832,1553.2,1552.8,63.99339369]
[1744382053779,6.43832,1553.2,1552.8,59.645]
[1744382053780,6.43918,1553.0,1552.8,59.645]
[1744382054014,6.43918,1553.0,1552.8,9.438]
[1744382054215,6.43918,1553.0,1552.7,1.1928]
[1744382054216,6.44022,1552.8,1552.5,1.1928]
[1744382054413,6.44138,1552.5,1552.3,5.57756685]
[1744382054616,6.44138,1552.5,1552.3,4.29236685]
[1744382054813,12.88202,1552.6,1552.3,4.78328366]
[1744382055013,6.44123,1552.5,1552.3,4.78328366]
[1744382055195,6.49123,1552.5,1552.3,4.29236685]
[1744382055395,7.72133,1552.4,1552.3,4.29236685]
[1744382055792,7.77133,1552.4,1552.3,4.29236685]
[1744382056004,9.192586,1552.4,1552.3,4.29236685]
[1744382056206,7.77133,1552.4,1552.3,4.29236685]
[1744382057018,1.3297,1552.4,1552.0,3.0]
[1744382057318,6.44371,1551.9,1551.6,4.29236685]
[1744382057518,6.44432,1551.8,1551.6,4.29236685]
[1744382057706,7.68892,1552.2,1551.8,6.44402]
[1744382057908,12.88522,1552.2,1551.9,1.2994]
[1744382058091,6.4921,1552.3,1551.8,6.44387]
[1744382058291,6.44263,1552.2,1551.9,0.06442986]
[1744382058589,6.4421,1552.3,1551.9,13.36236577]
[1744382058808,7.68809,1552.4,1552.1,6.44267]
[1744382058809,1.2464,1552.4,1552.1,6.44267]
[1744382059008,6.44186,1552.4,1552.1,0.06442133]
[1744382059210,6.44236,1552.3,1552.0,5.62203658]
[1744382059391,6.44232,1552.3,1552.0,12.06525658]
[1744382059585,6.44232,1552.3,1552.0,4.33623658]
[1744382059791,0.05,1552.5,1552.0,4.33623658]
[1744382059792,6.44288,1552.1,1552.0,1.33623658]
[1744382060017,6.44288,1552.1,1551.9,3.0]
[1744382060316,6.44236,1552.3,1552.0,1.2523]
[1744382060518,6.44265,1552.2,1551.9,3.0]
[1744382060721,7.75339,1552.4,1552.0,6.50765463]
[1744382060896,6.44237,1552.3,1552.0,1.59513346]
[1744382061101,6.44237,1552.3,1552.0,1.65955785]
[1744382061314,6.44237,1552.3,1552.0,8.10284785]
[1744382061511,6.44136,1552.5,1552.2,1.7658]
[1744382062103,12.93182,1552.6,1552.2,8.20821]
[1744382062310,6.44127,1552.5,1552.3,0.820821]
[1744382062517,12.88277,1552.5,1552.3,0.820821]
[1744382062714,0.05,1552.4,1552.1,3.0]
[1744382062914,6.44166,1552.4,1552.1,3.0]
[1744382063526,14.18713,1552.5,1552.1,9.4427]
[1744382063829,6.44169,1552.4,1552.1,3.0]
[1744382063995,6.49169,1552.4,1552.1,3.0]
[1744382064396,7.79569,1552.5,1552.1,11.18179052]
[1744382064727,14.23713,1552.5,1552.1,11.18179052]
[1744382065026,6.44164,1552.4,1552.1,4.67464808]
[1744382065247,6.44164,1552.4,1552.1,4.7390684]
[1744382065530,14.18709,1552.5,1552.1,11.11731808]
[1744382065698,6.44163,1552.4,1552.1,11.11731808]
[1744382066227,6.44163,1552.4,1552.2,1.11173181]
[1744382066524,6.49163,1552.4,1552.1,4.67464808]
[1744382066733,6.44205,1552.3,1552.1,4.67464808]
[1744382066927,12.88435,1552.3,1552.1,3.0]
[1744382067128,6.44387,1551.9,1551.7,4.43724738]
[1744382067326,6.44387,1551.9,1551.6,6.08208781]
[1744382067531,0.05,1552.0,1551.6,12.52674781]
[1744382067699,0.05,1552.2,1551.7,1.25267478]
[1744382067894,0.05,1552.2,1551.6,12.52675781]
[1744382067895,6.49258,1552.2,1551.6,12.52675781]
[1744382068096,6.44414,1551.8,1551.6,4.29236685]
[1744382068301,6.44371,1551.9,1551.6,4.29236685]
[1744382068500,0.05,1552.0,1551.6,4.29236685]
[1744382068801,6.44454,1551.7,1551.6,4.29236685]
[1744382069004,9.628166,1551.7,1551.6,4.29236685]
[1744382069221,6.44579,1551.4,1551.3,5.63552497]
[1744382069430,9.628166,1551.7,1551.3,12.08153497]
[1744382069431,0.05,1551.6,1551.3,12.08153497]
[1744382069733,6.44416,1551.8,1551.5,6.44523]
[1744382069926,12.93862,1551.8,1551.4,6.44579]
[1744382070126,12.93862,1551.8,1551.6,6.44494]
[1744382070127,0.05,1551.8,1551.6,6.44494]
[1744382070349,0.05,1551.8,1551.6,3.0]
[1744382070551,6.44376,1551.9,1551.6,3.0]
[1744382070829,6.49302,1552.1,1551.7,6.44438]
[1744382070999,6.44331,1552.0,1551.6,15.8896]
[1744382071200,1.3503,1551.9,1551.6,3.0]
[1744382071423,6.44289,1552.1,1551.6,3.0]
[1744382071424,7.79326,1552.1,1551.6,9.44469]
[1744382071625,14.23637,1552.1,1551.7,6.44441]
[1744382071825,14.18639,1552.1,1551.7,6.44441]
[1744382072156,14.18644,1552.1,1551.7,6.44441]
[1744382072299,7.74326,1552.1,1551.7,12.95323841]
[1744382072614,7.74326,1552.1,1551.7,14.477716]
[1744382072810,1.3503,1552.1,1551.7,1.588926]
[1744382073016,6.44351,1552.0,1551.6,9.44487]
[1744382073219,0.05,1551.9,1551.6,3.0]
[1744382073415,6.49337,1552.0,1551.6,6.44472]
[1744382073738,6.44333,1552.0,1551.7,3.0]
[1744382074036,6.49333,1552.0,1551.7,3.0]
[1744382074236,6.49333,1552.0,1551.7,9.44453]
[1744382074539,6.49333,1552.0,1551.7,9.44439]
[1744382075798,12.9368,1552.0,1551.7,9.44439]
[1744382076006,6.49333,1552.0,1551.7,9.44439]
[1744382076405,6.44333,1552.0,1551.7,17.65005514]
[1744382076605,0.05,1552.0,1551.4,3.37731365]
[1744382076810,6.44522,1551.6,1551.3,10.6362]
[1744382077039,0.05,1551.5,1551.3,9.423]
[1744382077337,6.49551,1551.5,1551.3,9.423]
[1744382077539,7.64725,1551.7,1551.3,15.86907]
[1744382077751,0.05,1551.6,1551.3,9.423]
[1744382078038,6.44552,1551.5,1551.3,9.423]
[1744382078424,6.44568,1551.5,1551.3,9.423]
[1744382078808,12.89113,1551.5,1551.3,9.423]
[1744382079021,6.44556,1551.5,1551.2,6.4465]
[1744382079340,6.44633,1551.3,1551.1,7.31341788]
[1744382079544,6.44591,1551.4,1551.1,10.76039788]
[1744382079740,0.05,1551.3,1551.1,4.31341788]
[1744382079942,0.05,1551.3,1550.9,1.2891]
[1744382079943,12.8936,1551.2,1550.9,1.2891]
[1744382080147,14.1537,1551.3,1550.9,7.73683]
[1744382080342,1.2608,1551.3,1551.0,6.4472]
[1744382080544,0.05,1551.4,1551.1,7.09139]
[1744382080721,6.49583,1551.4,1551.1,6.44667]
[1744382081216,0.05,1551.4,1551.1,12.89359]
[1744382081745,6.49587,1551.4,1551.1,6.44667]
[1744382081939,12.94207,1551.4,1551.0,12.89467]
[1744382082128,12.89258,1551.3,1551.0,6.44733]
[1744382082326,0.05,1551.2,1550.9,1.77841731]
[1744382082530,0.05,1551.2,1550.8,15.87305]
[1744382082732,1.185,1551.1,1550.8,15.87305]
[1744382082931,7.63215,1551.1,1550.8,15.87305]
[1744382083248,0.05,1551.0,1550.8,15.87328]
[1744382083449,0.05,1551.2,1551.0,6.44733]
[1744382083626,1.3373,1551.3,1551.0,6.44728]
[1744382083832,1.3373,1551.3,1550.9,10.66787]
[1744382084037,1.3373,1551.3,1551.0,6.44722]
[1744382084236,0.05,1551.4,1551.2,6.4465]
[1744382084430,0.05,1551.4,1551.1,6.44688]
[1744382084632,6.4958,1551.4,1551.1,6.44688]
[1744382085163,0.05,1551.4,1551.1,6.44673]
[1744382085363,0.05,1551.4,1551.2,6.4465]
[1744382085556,0.05,1551.4,1551.1,6.44673]
[1744382085557,6.49581,1551.4,1551.1,6.44673]
[1744382085762,6.49581,1551.4,1551.0,6.44735]
[1744382085959,0.05,1551.4,1551.0,1.5021155]
[1744382086159,0.05,1551.4,1551.2,6.4465]
[1744382086464,6.49483,1551.7,1551.2,6.44662]
[1744382086652,1.3445,1551.7,1551.4,6.44579]
[1744382086955,12.88858,1551.8,1551.5,12.89039]
[1744382086956,6.44422,1551.8,1551.5,12.89039]
[1744382087257,6.49422,1551.8,1551.5,6.44514]
[1744382087465,0.05,1551.8,1551.5,13.54135914]
[1744382087967,6.49413,1551.8,1551.5,7.09609914]
[1744382088533,13.8283,1551.9,1551.6,6.44491]
[1744382088835,12.88596,1552.1,1551.8,6.44393]
[1744382089036,6.44291,1552.1,1551.7,12.88892]
[1744382089245,6.44291,1552.1,1551.8,7.732892]
[1744382089547,6.49291,1552.1,1551.8,1.288892]
[1744382089882,9.408,1552.5,1551.8,1.288892]
[1744382089883,0.05,1552.3,1551.9,6.4437]
[1744382090033,6.44257,1552.2,1551.9,6.44357]
[1744382090238,12.8854,1552.2,1551.8,24.815132]
[1744382090471,12.8854,1552.2,1551.9,2.4815132]
[1744382090675,12.93436,1552.3,1551.9,8.9251632]
[1744382090975,6.44175,1552.4,1552.1,6.44275]
[1744382091338,6.4913,1552.5,1552.2,6.44237]
[1744382091565,6.4413,1552.5,1552.2,12.88471]
[1744382091758,6.49084,1552.6,1552.3,12.88404]
[1744382091957,0.05,1552.7,1552.4,6.44153]
[1744382092160,0.05,1552.7,1552.5,6.44122]
[1744382092359,6.43999,1552.8,1552.5,7.71712]
[1744382092659,6.48967,1552.9,1552.6,6.44069]
[1744382093012,7.73356,1553.0,1552.7,12.88041]
[1744382093298,14.22289,1553.0,1552.7,6.44014]
[1744382093607,6.43926,1553.0,1552.7,6.44014]
[1744382093763,12.87869,1553.0,1552.7,6.44014]
[1744382093958,12.87869,1553.0,1552.6,6.92929036]
[1744382094163,12.87869,1553.0,1552.7,6.44039]
[1744382094164,6.43926,1553.0,1552.7,6.44039]
[1744382094396,6.48884,1553.1,1552.8,6.43995]
[1744382094600,6.48884,1553.1,1552.7,6.44022]
[1744382094903,7.67348,1553.3,1552.9,6.43918]
[1744382095104,6.48846,1553.2,1552.8,6.43993]
[1744382095463,12.87785,1553.1,1552.7,7.69071]
[1744382095660,12.87785,1553.1,1552.7,15.67500694]
[1744382095885,6.43887,1553.1,1552.7,15.67500694]
[1744382096093,12.87779,1553.1,1552.7,9.23469694]
[1744382096404,6.43941,1553.0,1552.7,2.79445694]
[1744382096643,6.48941,1553.0,1552.7,2.79445694]
[1744382097246,0.05,1553.0,1552.8,6.43997]
[1744382097452,6.4888,1553.1,1552.8,6.43997]
[1744382097747,12.92772,1553.1,1552.7,9.29907235]
[1744382097909,6.43931,1553.0,1552.7,9.23481694]
[1744382098113,6.43931,1553.0,1552.7,7.75500542]
[1744382098304,7.67331,1553.3,1552.6,6.92936036]
[1744382098305,6.48985,1552.9,1552.6,0.48861036]
[1744382098557,6.44052,1552.7,1552.5,1.2352]
[1744382098735,6.44085,1552.6,1552.3,67.31624]
[1744382098909,6.49003,1552.8,1552.5,6.44107]
[1744382099249,6.49003,1552.8,1552.4,6.50596874]
[1744382099548,6.44041,1552.7,1552.3,73.76863548]
[1744382099731,6.49095,1552.6,1552.3,60.8742]
[1744382099931,6.44136,1552.5,1552.3,59.639]
[1744382100133,6.44136,1552.5,1552.3,9.407]
[1744382100134,6.44163,1552.4,1552.3,9.407]
[1744382100343,6.49163,1552.4,1552.3,9.407]
[1744382100514,7.63923,1552.7,1552.3,17.97531]
[1744382100710,6.44154,1552.5,1552.3,9.407]
[1744382100955,6.44125,1552.5,1552.3,9.407]
[1744382101123,6.44163,1552.4,1552.3,9.407]
[1744382101314,6.49088,1552.6,1552.3,15.84892]
[1744382101515,1.1987,1552.7,1552.3,15.84888]
[1744382101743,7.63921,1552.7,1552.3,24.175638]
[1744382101941,1.1987,1552.7,1552.3,11.291888]
[1744382102162,6.44158,1552.5,1552.3,9.407]
[1744382102313,12.88316,1552.5,1552.3,9.407]
[1744382102512,6.44163,1552.4,1552.3,9.407]
[1744382102712,0.05,1552.6,1552.3,9.407]
[1744382102713,6.49097,1552.6,1552.3,12.407]
[1744382102953,6.43968,1552.9,1552.5,1.2342]
[1744382103253,6.43839,1553.2,1552.8,6.43979]
[1744382103465,6.43798,1553.3,1553.0,6.43903]
[1744382103665,12.87606,1553.3,1553.0,6.43903]
[1744382103878,12.87606,1553.3,1552.9,17.11318]
[1744382104075,12.87606,1553.3,1553.0,8.150398]
[1744382104076,6.43798,1553.3,1553.0,8.150398]
[1744382104264,6.43798,1553.3,1553.0,8.150328]
[1744382104470,6.43856,1553.2,1552.9,1.2342]
[1744382104646,12.87724,1553.2,1552.9,1.2342]
[1744382104851,6.43856,1553.2,1552.9,7.67375]
[1744382105090,12.87705,1553.2,1552.9,7.67375]
[1744382105795,6.43877,1553.1,1552.9,1.2342]
[1744382106147,6.43849,1553.2,1552.9,7.67372]
[1744382106451,12.87719,1553.2,1552.9,7.67372]
[1744382106793,6.43849,1553.2,1553.0,0.767372]
[1744382107288,6.43847,1553.2,1552.9,6.91959406]
[1744382107493,12.87694,1553.2,1552.9,6.91959406]
[1744382107998,6.43956,1552.9,1552.8,9.402]
[1744382108199,6.4388,1553.1,1552.8,15.84183]
[1744382108398,6.43917,1553.0,1552.8,9.402]
[1744382108555,6.43956,1552.9,1552.8,9.402]
[1744382108954,6.48917,1553.0,1552.8,9.402]
[1744382109499,6.44013,1552.8,1552.6,3.0]
[1744382109885,6.44056,1552.7,1552.5,10.6262]
[1744382110197,6.44185,1552.4,1552.1,4.31341788]
[1744382110418,14.08966,1552.5,1552.2,6.44244]
[1744382110621,1.2068,1552.5,1552.1,11.23811144]
[1744382110803,1.2068,1552.5,1552.1,4.31341788]
[1744382110804,6.44246,1552.2,1552.1,4.31341788]
[1744382111119,6.49246,1552.2,1552.1,4.31341788]
[1744382111314,0.05,1552.2,1552.1,4.31341788]
[1744382111469,0.05,1552.5,1552.1,4.74475967]
[1744382111671,6.44081,1552.6,1552.3,6.44188]
[1744382111900,6.44125,1552.5,1552.2,9.4]
[1744382112105,6.44163,1552.4,1552.2,9.4]
[1744382112703,0.05,1552.3,1552.2,9.4]
[1744382112906,6.44127,1552.5,1552.2,17.17461155]
[1744382113500,6.44127,1552.5,1552.2,23.61693155]
[1744382113708,12.93185,1552.6,1552.2,23.61693155]
[1744382114402,0.05,1552.6,1552.2,10.73221155]
[1744382114704,12.88533,1552.2,1551.9,6.44355]
[1744382114902,6.44304,1552.1,1551.8,10.606]
[1744382115102,6.44346,1552.0,1551.8,10.606]
[1744382115410,6.44297,1552.1,1551.8,16.32906404]
[1744382115624,12.88602,1552.1,1551.8,19.04111002]
[1744382115831,6.44371,1551.9,1551.6,1.205]
[1744382116128,6.44371,1551.9,1551.6,7.64979]
[1744382116277,6.4443,1551.8,1551.5,56.64725]
[1744382116475,6.4943,1551.8,1551.5,6.44525]
[1744382116816,6.4449,1551.7,1551.4,9.401]
[1744382117017,6.44513,1551.6,1551.4,9.401]
[1744382117417,6.44388,1551.9,1551.5,10.85635968]
[1744382117706,0.05,1551.9,1551.5,0.61444348]
[1744382117933,6.44373,1551.9,1551.6,6.44475]
[1744382118133,14.13371,1552.0,1551.7,6.44438]
[1744382118339,9.44209,1552.3,1551.7,6.44438]
[1744382118340,14.13096,1552.3,1551.7,1.314938]
[1744382118638,14.13095,1552.3,1551.9,12.88693]
[1744382118794,6.44257,1552.2,1551.8,6.44403]
[1744382119152,6.49292,1552.1,1551.7,7.209348]
[1744382119630,6.44254,1552.2,1551.8,0.06443848]
[1744382119796,12.88526,1552.2,1551.9,6.44352]
[1744382120000,12.93526,1552.2,1551.9,6.44352]
[1744382120231,12.93526,1552.2,1551.9,1.288755]
[1744382120232,6.44327,1552.1,1551.9,1.288755]
[1744382120536,6.44383,1551.9,1551.6,7.64992]
[1744382120739,6.44413,1551.8,1551.6,1.205]
[1744382120890,6.44512,1551.6,1551.4,9.379]
[1744382121090,6.44454,1551.7,1551.4,11.79521439]
[1744382121308,6.44454,1551.7,1551.4,18.176415]
[1744382121532,6.44515,1551.6,1551.4,9.87090458]
[1744382122124,6.44537,1551.5,1551.4,9.379]
[1744382122636,6.44515,1551.6,1551.4,9.379]
[1744382123336,12.93937,1551.7,1551.4,9.379]
[1744382123556,0.05,1551.8,1551.4,9.93707808]
[1744382123847,1.2408,1552.1,1551.8,6.44374]
[1744382123998,14.12433,1552.4,1551.9,9.44542774]
[1744382124190,6.44173,1552.4,1552.1,6.4427]
[1744382124705,6.44173,1552.4,1552.0,7.64474]
[1744382125037,6.44177,1552.4,1552.1,6.44275]
[1744382125336,12.88369,1552.4,1552.1,6.44275]
[1744382125550,6.44177,1552.4,1552.1,6.44275]
[1744382125750,6.44177,1552.4,1552.1,12.88551]
[1744382125953,1.2033,1552.6,1552.3,6.44194]
[1744382125954,7.64414,1552.6,1552.3,6.44194]
[1744382126126,7.64414,1552.6,1552.3,7.09257583]
[1744382126324,6.44,1552.8,1552.4,6.44163]
[1744382126632,7.72332,1552.9,1552.5,6.44098]
[1744382126813,11.93035547,1553.1,1552.8,6.43985]
[1744382127154,11.98035547,1553.1,1552.8,6.43985]
[1744382127710,11.98035547,1553.1,1552.7,6.44027]
[1744382127711,6.43928,1553.0,1552.7,6.44024]
[1744382127918,6.43928,1553.0,1552.7,7.783336]
[1744382128271,11.93035547,1553.1,1552.7,7.783306]
[1744382128555,11.93035547,1553.1,1552.8,6.43984]
[1744382128760,6.43892,1553.1,1552.8,6.43984]
[1744382128946,6.43931,1553.0,1552.7,7.783306]
[1744382129112,6.48892,1553.1,1552.7,14.223526]
[1744382129315,12.92797,1553.1,1552.7,7.783306]
[1744382129641,0.05,1553.1,1552.7,1.343096]
[1744382129958,7.73534,1553.3,1553.0,6.43893]
[1744382130165,0.05,1553.4,1553.1,0.06438519]
[1744382130456,0.05,1553.4,1553.2,6.43813]
[1744382130663,6.43823,1553.3,1553.0,3.0]
[1744382130809,6.43844,1553.2,1553.0,0.49098121]
[1744382131013,12.87703,1553.2,1552.9,15.81839]
[1744382131330,6.43844,1553.2,1552.9,15.81847]
[1744382131510,1.2474,1553.3,1552.9,12.030619]
[1744382131851,6.43793,1553.3,1553.0,6.43908]
[1744382132054,12.92559,1553.4,1553.0,12.87816]
[1744382132210,6.48777,1553.4,1553.1,6.43871]
[1744382132408,0.05,1553.4,1553.1,6.43856]
[1744382132656,0.05,1553.4,1553.2,7.71587054]
[1744382132862,0.05,1553.4,1553.2,8.48745759]
[1744382133058,0.05,1553.4,1553.3,6.9879]
[1744382133411,0.05,1553.4,1553.3,10.46145821]
[1744382133812,7.68805,1554.2,1553.6,6.43666]
[1744382134114,12.91868,1554.2,1553.8,6.98546]
[1744382134327,10.68532547,1554.3,1554.0,6.43497]
[1744382134623,17.11929547,1554.3,1554.0,6.92580642]
[1744382134815,17.11929547,1554.3,1554.0,0.49083642]
[1744382135164,6.43471,1554.1,1553.8,12.8714]
[1744382135365,6.48433,1554.2,1553.9,6.43525]
[1744382135548,17.11923547,1554.3,1553.9,14.15759]
[1744382135749,14.13868,1554.4,1554.0,6.49913328]
[1744382136059,14.13868,1554.4,1553.9,1.28709]
[1744382136060,12.86832,1554.3,1553.9,7.72237]
[1744382136240,12.86885,1554.2,1553.9,0.47814321]
[1744382136424,6.43466,1554.1,1553.8,6.4358]
[1744382136822,0.05,1554.0,1553.7,13.5913]
[1744382137016,12.87033,1554.0,1553.7,9.377]
[1744382137239,6.43558,1553.9,1553.7,9.377]
[1744382137468,12.87217,1553.8,1553.6,3.0]
[1744382137762,6.43604,1553.8,1553.5,7.62873]
[1744382138067,6.43547,1553.9,1553.6,6.4365]
[1744382138244,6.43547,1553.9,1553.5,9.585209]
[1744382138245,12.8711,1553.9,1553.5,9.585319]
[1744382138561,7.6513,1554.2,1553.8,6.4355]
[1744382138562,6.43438,1554.2,1553.8,6.4355]
[1744382138742,6.43438,1554.2,1553.9,0.55]
[1744382138944,6.43438,1554.2,1553.9,6.98525]
[1744382139119,6.48383,1554.3,1554.1,6.43455]
[1744382139120,0.05,1554.3,1554.1,6.43455]
[1744382139322,6.48339,1554.4,1554.1,6.98455]
[1744382139546,6.43391,1554.3,1554.0,1.287]
[1744382139831,12.86872,1554.2,1553.9,9.31324827]
[1744382140065,6.43473,1554.1,1553.8,17.58961274]
[1744382140360,6.48495,1554.1,1553.8,9.373]
[1744382140591,6.48464,1554.1,1553.8,9.373]
[1744382140793,6.43431,1554.2,1553.8,15.80881]
[1744382140992,12.86872,1554.2,1553.8,22.2445]
[1744382141150,6.43431,1554.2,1553.9,12.9349838]
[1744382141351,6.43431,1554.2,1553.9,8.66606838]
[1744382141551,1.2212,1554.2,1553.8,16.28458656]
[1744382141794,6.43436,1554.2,1553.9,6.43527]
[1744382142093,12.86776,1554.3,1554.0,6.435]
[1744382142266,6.43427,1554.2,1553.9,6.43527]
[1744382142472,1.2712,1554.4,1553.9,6.43539]
[1744382142653,6.43437,1554.2,1553.8,16.28461656]
[1744382142853,6.43513,1554.0,1553.8,9.84887656]
[1744382143104,6.43617,1553.8,1553.5,7.843529]
[1744382143260,6.43613,1553.8,1553.4,14.08724]
[1744382143459,12.87232,1553.8,1553.4,14.08724]
[1744382143695,6.43512,1554.0,1553.5,6.43707]
[1744382143903,6.43512,1554.0,1553.7,12.87224]
[1744382144056,12.9195,1554.1,1553.8,6.4358]
[1744382144256,0.05,1554.1,1553.6,7.630257]
[1744382144565,0.05,1554.1,1553.6,7.080237]